bitfinex/quotes_ETHUSD_20251126
["timestamp","ask_amount","ask_price","bid_price","bid_amount"]
[1764170011372,0.221,2936.6,2935.8,0.405504]
[1764170012859,0.221,2936.7,2935.9,0.4612]
[1764170013088,0.221,2936.7,2936.0,6.8119891]
[1764170013967,0.221,2936.7,2936.0,10.21798365]
[1764170014594,0.221,2936.7,2936.0,10.67918365]
[1764170015461,0.221,2936.7,2936.0,7.2731891]
[1764170015889,0.221,2936.7,2936.0,10.67918365]
[1764170016769,0.221,2936.7,2936.0,7.2731891]
[1764170018004,0.221,2936.7,2936.0,6.8119891]
[1764170018381,0.221,2936.7,2936.0,3.40599455]
[1764170018382,0.6717,2936.7,2936.0,3.40599455]
[1764170018589,0.2948,2936.1,2934.5,0.4612]
[1764170018770,0.2948,2936.1,2934.6,3.40859471]
[1764170018771,8.83564854,2935.3,2934.6,3.40859471]
[1764170018969,0.72559411,2935.1,2934.6,0.001]
[1764170019219,4.98943652,2935.2,2934.6,0.001]
[1764170019507,4.31491975,2935.8,2934.6,0.001]
[1764170019508,0.221,2935.1,2934.6,0.001]
[1764170019873,0.221,2935.0,2934.7,0.4612]
[1764170020074,0.221,2935.0,2934.6,0.001]
[1764170020476,0.6717,2935.0,2934.6,0.001]
[1764170020901,0.4507,2934.9,2934.6,0.001]
[1764170021305,0.1852,2935.5,2934.6,0.001]
[1764170021475,0.221,2935.4,2934.6,0.001]
[1764170021675,0.74747419,2935.4,2934.6,0.001]
[1764170022003,0.72559411,2935.2,2934.6,0.001]
[1764170022215,0.1852,2935.5,2934.6,0.001]
[1764170022508,0.221,2935.7,2935.4,0.4799]
[1764170022705,0.1844,2936.2,2935.3,0.1876]
[1764170022706,0.221,2935.6,2935.3,0.1876]
[1764170022892,0.1844,2936.2,2935.3,0.6488]
[1764170023092,0.221,2936.1,2935.6,6.81291728]
[1764170023497,0.221,2936.1,2935.6,3.40645864]
[1764170023804,0.221,2936.1,2935.6,6.81291728]
[1764170025204,0.221,2936.1,2935.4,6.81338148]
[1764170026682,0.89346,2936.1,2935.4,6.81338148]
[1764170027182,0.221,2936.1,2935.2,3.40692286]
[1764170027378,0.221,2936.1,2935.2,10.68916858]
[1764170027580,0.1844,2936.2,2935.4,0.405504]
[1764170027907,0.221,2936.1,2935.4,0.405504]
[1764170028207,0.221,2936.1,2935.5,0.4684]
[1764170029286,0.221,2936.1,2935.6,6.81291728]
[1764170029486,0.221,2936.1,2935.6,10.21937592]
[1764170029683,0.72559411,2936.2,2935.7,0.873904]
[1764170029998,0.221,2936.1,2935.7,0.873904]
[1764170030199,0.221,2936.1,2935.6,6.81291728]
[1764170030386,0.4689,2936.0,2935.6,3.40645864]
[1764170030586,0.327,2935.7,2935.2,3.40692286]
[1764170030784,0.72559411,2936.2,2935.2,6.81384572]
[1764170030984,0.221,2936.1,2935.2,7.28224572]
[1764170031183,4.13158866,2936.0,2934.8,6.81473475]
[1764170031407,0.72559411,2936.0,2935.1,0.1999]
[1764170031816,0.0569,2935.9,2935.1,0.1999]
[1764170032116,0.2701,2935.2,2934.8,3.40734754]
[1764170032290,0.221,2935.2,2934.7,6.81496506]
[1764170032505,0.221,2935.2,2934.7,10.22246838]
[1764170032717,0.221,2935.2,2934.8,0.4684]
[1764170033528,0.221,2935.2,2934.9,6.81454222]
[1764170033895,0.221,2935.2,2934.9,7.28294222]
[1764170034926,0.221,2935.2,2934.8,6.8147213]
[1764170035427,3.40602044,2936.0,2934.6,0.001]
[1764170035428,0.90863693,2936.8,2935.3,0.405504]
[1764170035614,0.72559411,2936.3,2935.5,0.452]
[1764170035934,0.6615,2936.5,2935.6,0.4684]
[1764170036161,0.221,2936.4,2935.6,0.4684]
[1764170037416,0.221,2936.4,2935.7,6.8126852]
[1764170038148,0.6899,2936.4,2935.6,3.40642941]
[1764170038307,6.82621,2936.3,2935.6,3.40642941]
[1764170038645,1.09216406,2936.2,2935.6,6.81288805]
[1764170038812,0.4689,2936.2,2935.6,6.81288805]
[1764170039019,0.4689,2936.2,2935.6,3.40642941]
[1764170039531,1.19449411,2936.2,2935.2,3.40688945]
[1764170039843,0.4689,2936.2,2935.2,10.22073517]
[1764170040065,1.19449411,2936.2,2935.2,10.22073517]
[1764170040265,0.46002066,2936.1,2935.2,6.81381231]
[1764170040456,0.92892066,2936.1,2935.2,3.40688945]
[1764170040654,0.92892066,2936.1,2935.2,10.22073517]
[1764170040832,0.1872,2936.9,2936.0,0.452]
[1764170041032,0.6899,2936.8,2935.4,0.0993]
[1764170041335,0.1872,2936.9,2935.3,1.41499411]
[1764170041336,0.221,2936.7,2935.8,0.405504]
[1764170041538,0.1872,2936.9,2935.8,0.405504]
[1764170041539,0.221,2936.6,2935.9,0.4684]
[1764170043343,0.6899,2936.6,2935.6,10.21937592]
[1764170043548,0.6899,2936.6,2935.6,10.68777592]
[1764170043746,0.4689,2936.5,2935.6,7.28131728]
[1764170043953,0.1872,2936.9,2935.7,0.405504]
[1764170044181,0.002,2936.9,2936.8,0.857504]
[1764170044361,0.002,2937.3,2936.9,0.405504]
[1764170044564,0.002,2937.6,2937.3,0.857504]
[1764170044741,0.002,2937.6,2937.5,0.956804]
[1764170045169,0.002,2937.6,2937.5,0.452]
[1764170045341,0.002,2937.6,2937.5,1.325904]
[1764170045677,0.002,2937.6,2937.5,4.82945931]
[1764170045969,0.002,2937.6,2937.5,4.26175931]
[1764170046178,0.002,2937.6,2937.5,4.73375931]
[1764170046369,0.002,2937.6,2937.5,4.83305931]
[1764170047285,0.0012,2937.6,2937.5,4.83305931]
[1764170047708,0.0012,2937.6,2937.5,4.32825531]
[1764170048020,0.0012,2937.6,2937.3,6.80897422]
[1764170048201,0.0012,2937.6,2937.3,3.40448711]
[1764170048877,0.0012,2937.6,2937.3,6.80897422]
[1764170049075,0.0012,2937.6,2937.5,0.499]
[1764170049286,0.0012,2937.6,2937.3,6.80897422]
[1764170049489,0.0012,2937.6,2936.8,0.221]
[1764170049689,0.0012,2937.6,2937.1,0.1948]
[1764170049897,0.0012,2937.6,2937.2,0.472]
[1764170050263,0.0012,2937.6,2937.1,0.1948]
[1764170051080,0.0012,2937.6,2936.6,14.09315397]
[1764170051283,0.0012,2937.6,2937.1,0.1948]
[1764170051594,0.0012,2937.6,2937.2,3.40460302]
[1764170051983,0.0012,2937.6,2937.2,6.80920604]
[1764170052894,0.4854,2937.6,2937.2,6.80920604]
[1764170053104,0.0012,2937.6,2937.2,6.80920604]
[1764170053582,0.0012,2937.6,2937.3,0.472]
[1764170053911,0.0012,2937.6,2937.2,6.80920604]
[1764170054129,0.0012,2937.6,2937.2,7.28380604]
[1764170054489,0.0012,2937.6,2937.2,6.80920604]
[1764170055586,0.4945,2937.6,2937.0,6.81064585]
[1764170055790,0.4945,2937.6,2937.0,10.21548071]
[1764170055992,0.4945,2937.6,2937.0,6.81064585]
[1764170056718,0.2468,2937.1,2937.0,0.001]
[1764170057227,9.44197711,2937.1,2937.0,0.001]
[1764170057426,7.93717582,2937.1,2937.0,0.001]
[1764170057586,5.07149182,2937.1,2937.0,0.001]
[1764170057928,5.07149182,2937.1,2934.6,3.40861284]
[1764170057929,1.13109811,2936.5,2934.6,0.001]
[1764170058090,11.506047,2936.6,2934.6,0.001]
[1764170058091,0.1962,2934.7,2934.6,0.001]
[1764170058491,0.9105,2934.7,2934.6,0.001]
[1764170058687,0.72559411,2934.6,2934.4,0.001]
[1764170058991,0.72559411,2934.2,2934.1,0.001]
[1764170059212,2.947452,2934.2,2934.1,0.001]
[1764170059399,0.72559411,2934.1,2933.6,0.001]
[1764170059723,0.91659411,2933.7,2933.3,0.001]
[1764170059920,15.58637065,2933.4,2933.3,0.001]
[1764170060123,30.0,2933.2,2932.0,0.001]
[1764170060420,0.0423,2932.4,2932.0,0.001]
[1764170060623,0.221,2932.3,2932.0,0.001]
[1764170060839,0.4933,2932.2,2932.0,0.001]
[1764170061139,1.21889411,2932.2,2932.0,0.001]
[1764170062010,0.221,2932.2,2932.0,0.001]
[1764170063202,0.7143,2932.2,2932.0,0.001]
[1764170063996,1.43989411,2932.2,2932.0,0.001]
[1764170064192,7.14897472,2932.2,2932.0,0.001]
[1764170064393,1.91636672,2932.2,2932.0,0.001]
[1764170064598,1.43989411,2932.2,2932.0,0.001]
[1764170064927,7.64700711,2932.2,2932.0,0.001]
[1764170065426,11.05741567,2932.2,2932.0,0.001]
[1764170065626,27.93773067,2932.2,2932.0,0.001]
[1764170065928,20.04749467,2932.2,2932.0,0.001]
[1764170066129,21.76760411,2932.1,2932.0,0.001]
[1764170066327,20.26066711,2932.1,2932.0,0.001]
[1764170066528,4.01719211,2932.1,2932.0,0.001]
[1764170066703,0.221,2932.1,2932.0,0.001]
[1764170067114,0.0423,2932.4,2932.0,0.001]
[1764170067316,0.221,2932.1,2932.0,0.001]
[1764170067526,0.221,2932.2,2932.0,0.001]
[1764170068192,0.4933,2932.1,2932.0,0.001]
[1764170068397,6.44476911,2932.1,2932.0,0.001]
[1764170068598,7.06373536,2932.1,2932.0,0.001]
[1764170068823,0.72559411,2932.1,2932.0,0.001]
[1764170069022,1.62439811,2932.1,2932.0,0.001]
[1764170069334,16.66801411,2931.9,2931.8,0.001]
[1764170069532,3.15871011,2931.9,2931.8,0.001]
[1764170069708,3.65201011,2931.9,2931.8,0.001]
[1764170069912,12.79126564,2931.9,2931.8,0.001]
[1764170070112,4.15136612,2931.9,2931.8,0.001]
[1764170070326,7.56212364,2931.9,2931.8,0.001]
[1764170070629,7.96762764,2931.9,2931.8,0.001]
[1764170071030,17.48451412,2931.9,2931.8,0.001]
[1764170071334,9.77416264,2931.9,2931.8,0.001]
[1764170071530,4.20487512,2931.9,2931.8,0.001]
[1764170071730,1.82719512,2931.9,2931.8,0.001]
[1764170071918,17.08576864,2931.9,2931.8,0.001]
[1764170072109,13.67501112,2931.9,2931.8,0.001]
[1764170072311,0.72479411,2931.9,2931.8,0.001]
[1764170072501,1.43909411,2931.9,2931.8,0.001]
[1764170072704,4.84985163,2931.9,2931.8,0.001]
[1764170072924,14.435479,2931.8,2931.6,0.001]
[1764170073127,14.435479,2931.8,2931.1,0.001]
[1764170073128,30.079649,2931.7,2931.1,0.001]
[1764170073436,30.079649,2931.7,2930.9,0.001]
[1764170073437,30.0,2931.2,2930.9,0.001]
[1764170073608,3.14497,2931.2,2930.9,0.001]
[1764170073805,13.28566511,2931.0,2930.9,0.001]
[1764170074041,0.94659411,2931.0,2930.9,0.001]
[1764170074213,0.72559411,2931.0,2930.9,0.001]
[1764170074538,0.94659411,2931.0,2930.9,0.001]
[1764170075641,4.97934011,2931.0,2930.9,0.001]
[1764170075844,5.47727412,2931.0,2930.9,0.001]
[1764170076706,1.44452812,2931.0,2930.9,0.001]
[1764170077010,24.66837215,2931.0,2930.9,0.001]
[1764170077322,10.18841395,2931.0,2930.9,0.001]
[1764170077963,15.91280995,2931.0,2930.9,0.001]
[1764170078124,12.50100511,2931.0,2930.9,0.001]
[1764170078320,11.20728895,2931.0,2930.9,0.001]
[1764170078553,12.76857519,2931.0,2930.9,0.001]
[1764170078858,6.71910093,2931.0,2930.9,0.001]
[1764170079047,22.96049893,2931.0,2930.9,0.001]
[1764170079245,20.52122893,2931.0,2930.9,0.001]
[1764170079625,20.62061719,2931.0,2930.9,0.001]
[1764170079950,14.259633,2930.7,2930.1,0.001]
[1764170080153,16.71960022,2930.7,2930.1,0.001]
[1764170080357,16.96494622,2930.7,2930.1,0.001]
[1764170080570,17.21144622,2930.7,2930.1,0.001]
[1764170080923,21.63773222,2930.7,2930.1,0.001]
[1764170081123,21.73712048,2930.7,2930.1,0.001]
[1764170081344,8.53455722,2930.7,2930.1,0.001]
[1764170081537,6.42668211,2930.7,2930.1,0.001]
[1764170081748,5.01276411,2930.7,2930.1,0.001]
[1764170081954,16.3729262,2930.7,2930.1,0.001]
[1764170082170,8.35032411,2930.7,2930.1,0.001]
[1764170082331,5.42562811,2930.7,2930.1,0.001]
[1764170082526,5.96819092,2930.7,2930.1,0.001]
[1764170082734,0.221,2930.9,2930.6,0.4668]
[1764170083537,0.221,2930.9,2930.6,0.001]
[1764170083747,0.7143,2930.9,2930.6,0.001]
[1764170083938,0.221,2930.9,2930.6,0.001]
[1764170085158,0.221,2930.9,2930.6,0.4561]
[1764170085767,0.221,2930.9,2930.8,0.4516]
[1764170086063,0.221,2930.9,2930.8,3.86363766]
[1764170086267,0.221,2930.9,2930.8,4.31873766]
[1764170087067,4.44476395,2932.0,2930.8,7.73077532]
[1764170087068,0.221,2931.5,2930.8,7.73077532]
[1764170087371,0.221,2931.5,2930.8,11.14281298]
[1764170087533,0.221,2931.5,2931.4,0.194]
[1764170087738,0.221,2932.0,2931.4,0.6456]
[1764170087940,0.221,2932.0,2931.5,3.41122292]
[1764170088138,0.221,2932.0,2931.5,6.82244584]
[1764170088463,0.221,2932.0,2931.4,3.60533322]
[1764170088635,0.94545824,2932.0,2931.4,7.01667251]
[1764170088840,0.221,2932.0,2931.4,7.01667251]
[1764170089038,1.22449411,2931.9,2931.1,0.194]
[1764170089242,1.95047589,2931.9,2931.1,3.41168844]
[1764170089462,0.72598178,2931.8,2931.1,3.41168844]
[1764170089654,0.72598178,2931.8,2930.7,3.41211015]
[1764170089655,11.449378,2931.5,2930.7,6.82430818]
[1764170089850,0.72559411,2931.2,2930.7,6.82430818]
[1764170090042,0.221,2931.4,2931.1,0.6456]
[1764170090244,0.221,2931.4,2931.1,4.05724582]
[1764170090556,0.221,2931.4,2930.9,3.41185867]
[1764170090742,0.4792677,2931.4,2930.9,3.41185867]
[1764170090946,0.221,2931.4,2931.0,0.4551]
[1764170091357,0.94871525,2931.4,2930.9,6.82377992]
[1764170091554,0.72771525,2931.3,2931.0,0.4551]
[1764170091768,0.221,2931.4,2930.9,6.82377992]
[1764170092078,0.221,2931.4,2931.1,6.82337688]
[1764170092274,0.221,2931.4,2931.1,3.41168844]
[1764170092475,0.94913546,2931.4,2931.1,7.01737688]
[1764170092675,0.72813546,2931.3,2931.1,7.01737688]
[1764170092866,0.221,2931.4,2931.1,4.06078844]
[1764170093478,0.94941788,2931.4,2931.1,4.06078844]
[1764170093788,0.72841788,2931.3,2931.1,4.06078844]
[1764170093961,0.221,2931.4,2931.1,4.06078844]
[1764170094564,0.221,2931.4,2931.1,7.01737688]
[1764170094887,0.221,2931.4,2931.3,0.4516]
[1764170095088,0.90836767,2931.9,2931.3,0.4516]
[1764170095252,0.72927824,2931.8,2931.6,0.4516]
[1764170095454,0.002,2932.0,2931.6,0.4516]
[1764170095754,0.73129735,2932.0,2931.7,0.9067]
[1764170095957,0.73129735,2932.0,2931.9,3.86235752]
[1764170096254,0.002,2932.0,2931.9,4.31745752]
[1764170096566,0.002,2932.0,2931.8,3.41086568]
[1764170096567,0.0012,2932.0,2931.8,3.41082363]
[1764170096882,0.0012,2932.0,2931.8,6.82169749]
[1764170097387,0.0012,2932.0,2931.5,6.8223688]
[1764170097559,0.0012,2932.0,2931.5,7.2774688]
[1764170098082,0.0012,2932.0,2931.9,3.86235752]
[1764170098587,0.0012,2932.0,2931.9,4.31745752]
[1764170100076,0.0012,2932.0,2931.9,3.86235752]
[1764170100273,0.0012,2932.0,2931.6,3.41110241]
[1764170100488,0.0012,2932.0,2931.9,0.4516]
[1764170100670,0.0012,2932.0,2931.9,0.9067]
[1764170101074,0.0012,2932.0,2931.3,3.41136336]
[1764170101075,0.0012,2932.0,2931.3,0.4551]
[1764170101275,6.3212,2932.0,2931.1,3.60568844]
[1764170101479,0.63212,2931.9,2931.2,0.4551]
[1764170101678,6.3212,2932.0,2931.2,0.4551]
[1764170101875,0.221,2931.9,2931.2,0.4551]
[1764170102108,0.0012,2932.0,2931.9,3.86235752]
[1764170102403,0.0012,2932.0,2931.9,4.31745752]
[1764170104668,0.0012,2932.0,2931.9,3.86235752]
[1764170104890,0.0012,2932.0,2931.9,4.31745752]
[1764170105191,0.0012,2932.0,2931.9,3.86235752]
[1764170105498,0.0012,2932.0,2931.8,3.41086543]
[1764170105499,0.0012,2932.0,2931.2,0.4551]
[1764170105697,0.0012,2932.0,2931.9,0.4516]
[1764170106077,0.0012,2932.0,2931.4,10.23401787]
[1764170106271,0.0012,2932.0,2931.9,0.4516]
[1764170107990,0.0012,2932.0,2931.9,0.9281]
[1764170108302,0.0012,2932.0,2931.9,4.33885752]
[1764170108506,0.0012,2932.0,2931.9,3.86235752]
[1764170109101,0.0012,2932.0,2931.9,3.41075752]
[1764170109870,0.0012,2932.0,2931.9,4.36155752]
[1764170110424,0.0012,2932.0,2931.9,4.36255752]
[1764170110582,0.0012,2932.0,2931.9,4.46185752]
[1764170111077,0.0012,2932.0,2931.9,4.86736152]
[1764170111408,0.0012,2932.0,2931.9,4.76806152]
[1764170111809,0.0012,2932.0,2931.9,5.59295563]
[1764170112113,0.002,2932.3,2932.1,6.82104974]
[1764170112278,0.002,2932.3,2932.2,1.1381]
[1764170112920,0.002,2932.3,2932.2,1.543604]
[1764170113371,0.002,2932.3,2932.2,1.1381]
[1764170114202,0.002,2932.3,2932.2,4.54850856]
[1764170114509,0.002,2932.3,2932.2,4.95401256]
[1764170114686,0.002,2932.3,2932.2,4.07200856]
[1764170115101,0.002,2932.3,2932.2,4.53620856]
[1764170118095,0.002,2932.3,2932.2,5.04101256]
[1764170118616,0.002,2932.3,2932.2,4.94171256]
[1764170119526,0.002,2932.3,2932.2,5.04101256]
[1764170120591,0.002,2932.3,2932.2,4.94171256]
[1764170120792,0.002,2932.3,2932.2,5.04101256]
[1764170121533,0.0012,2932.3,2932.2,5.04101256]
[1764170124529,0.2831,2932.3,2932.2,0.03705906]
[1764170124730,1.30821459,2932.3,2931.9,0.001]
[1764170124942,0.096,2932.0,2931.9,0.001]
[1764170125127,0.0012,2932.3,2931.9,6.82251504]
[1764170125740,0.0012,2932.3,2931.9,10.23327256]
[1764170126049,0.0921,2932.0,2931.9,3.41175752]
[1764170126363,0.31703344,2932.2,2931.9,6.82251504]
[1764170126545,0.31703344,2932.2,2931.9,0.001]
[1764170126936,0.4894,2932.0,2931.9,0.001]
[1764170127411,0.5832,2932.0,2931.9,0.001]
[1764170127611,1.12140744,2932.0,2931.9,0.001]
[1764170127817,5.69059777,2932.0,2931.9,0.001]
[1764170128166,4.96000162,2932.0,2931.9,0.001]
[1764170128458,1.84700155,2932.0,2931.9,0.001]
[1764170129029,2.57751121,2932.0,2931.9,0.001]
[1764170129771,1.75320155,2932.0,2931.9,0.001]
[1764170130061,0.221,2932.0,2931.9,0.001]
[1764170131558,1.12108484,2932.0,2931.9,0.001]
[1764170131863,1.02338484,2932.0,2931.9,0.001]
[1764170132929,1.02338484,2932.0,2931.9,0.4924]
[1764170132930,0.221,2932.0,2931.9,0.4924]
[1764170133175,0.0012,2932.3,2931.9,0.4924]
[1764170133768,0.0012,2932.3,2931.9,0.001]
[1764170134623,0.4924,2932.3,2931.9,0.001]
[1764170134862,0.0921,2932.0,2931.9,0.001]
[1764170135024,0.31714559,2932.2,2931.9,0.001]
[1764170135225,1.22625456,2932.2,2931.9,0.001]
[1764170135651,0.73505456,2932.2,2931.9,0.001]
[1764170135846,0.0921,2932.0,2931.9,0.001]
[1764170136049,6.4121,2932.0,2931.9,0.001]
[1764170136253,7.216447,2932.0,2931.9,0.001]
[1764170137159,17.33445231,2932.0,2931.9,0.001]
[1764170137550,19.53635233,2932.0,2931.9,0.001]
[1764170137769,27.6874621,2932.0,2931.9,0.001]
[1764170137981,19.595704,2931.8,2931.6,0.001]
[1764170138280,8.22086613,2931.7,2931.6,0.001]
[1764170138654,2.77247513,2931.7,2931.6,0.001]
[1764170138982,19.38245134,2931.7,2931.6,0.001]
[1764170139180,9.90834646,2931.7,2931.6,0.001]
[1764170139381,7.62830349,2931.7,2931.6,0.001]
[1764170139569,2.04214111,2931.7,2931.6,0.001]
[1764170139880,6.48496811,2931.7,2931.6,0.001]
[1764170140578,10.72530111,2931.7,2931.6,0.001]
[1764170140758,7.11985011,2931.7,2931.6,0.001]
[1764170141085,11.58391991,2931.7,2931.6,0.001]
[1764170141411,10.31551491,2931.7,2931.6,0.001]
[1764170141570,17.52922391,2931.7,2931.6,0.001]
[1764170142547,14.16027991,2931.7,2931.6,0.001]
[1764170142748,15.93236291,2931.7,2931.6,0.001]
[1764170143180,20.85087691,2931.7,2931.6,0.001]
[1764170143981,20.7343757,2931.7,2931.6,0.001]
[1764170144183,21.36765291,2931.7,2931.6,0.001]
[1764170144748,21.82579591,2931.7,2931.6,0.001]
[1764170145183,21.36459591,2931.7,2931.6,0.001]
[1764170145891,21.36459591,2931.7,2931.3,0.001]
[1764170145892,0.72559411,2931.4,2931.3,0.001]
[1764170146095,0.405504,2931.3,2931.0,0.001]
[1764170146295,0.405504,2931.3,2930.4,0.001]
[1764170146296,33.52907159,2930.7,2930.4,0.001]
[1764170146453,9.27351033,2930.2,2930.1,0.001]
[1764170146653,0.405504,2930.0,2928.8,3.41428243]
[1764170146880,13.2160265,2929.9,2928.5,0.1882]
[1764170147188,12.64811177,2929.9,2928.5,0.6776]
[1764170147582,12.64811177,2929.9,2928.6,6.82920166]
[1764170147778,12.64811177,2929.9,2928.5,0.6776]
[1764170148088,18.40941288,2929.9,2928.5,7.0175573]
[1764170148681,18.02056588,2929.9,2928.5,10.43227473]
[1764170148912,17.96014188,2929.9,2928.5,7.0175573]
[1764170149095,12.58225388,2929.9,2928.5,10.43227473]
[1764170149291,5.75357545,2929.9,2929.1,0.1882]
[1764170149458,7.56714988,2929.9,2929.1,0.1882]
[1764170149661,7.56714988,2929.9,2928.8,0.4894]
[1764170149960,7.56714988,2929.9,2929.1,0.6776]
[1764170149961,1.02729411,2929.9,2929.1,0.6776]
[1764170150270,13.90203088,2929.9,2928.7,0.4894]
[1764170150590,11.80986288,2929.9,2928.5,10.43227473]
[1764170150792,12.12382155,2929.9,2928.5,7.0175573]
[1764170150992,14.19493346,2929.9,2928.8,0.4894]
[1764170151199,14.19493346,2929.9,2928.9,6.82850216]
[1764170152000,23.87774746,2929.9,2928.9,6.82850216]
[1764170152363,23.87774746,2929.9,2928.9,3.41425108]
[1764170152562,23.06543746,2929.9,2928.8,3.90371362]
[1764170152801,23.06543746,2929.9,2928.8,7.31808127]
[1764170153109,15.05173346,2929.9,2928.8,7.31808127]
[1764170153313,15.05173346,2929.9,2929.1,0.1882]
[1764170153520,11.63864769,2929.9,2929.1,0.1882]
[1764170153705,10.56141169,2929.9,2929.1,0.1882]
[1764170153906,7.89031846,2929.9,2929.1,0.1882]
[1764170154108,15.37894946,2929.9,2928.8,3.41431362]
[1764170155129,28.95489146,2929.9,2928.8,6.82868127]
[1764170155328,24.59780046,2929.9,2928.7,6.82896848]
[1764170156030,27.71112546,2929.9,2928.7,6.82896848]
[1764170156201,19.20307046,2929.9,2928.8,0.4894]
[1764170157043,38.29582246,2929.9,2928.8,0.4894]
[1764170157229,38.29582246,2929.9,2928.8,3.90368434]
[1764170157434,38.29582246,2929.9,2928.6,3.41458779]
[1764170157742,38.39521072,2929.9,2928.6,3.41458779]
[1764170157940,38.39521072,2929.9,2928.7,3.4144428]
[1764170158144,38.29582246,2929.9,2928.5,0.6776]
[1764170158475,0.405504,2929.1,2928.0,3.41530054]
[1764170158628,0.0047,2928.6,2928.0,3.41530054]
[1764170158822,0.221,2928.5,2928.0,3.41530054]
[1764170159152,0.6992,2928.5,2927.4,7.32137347]
[1764170159358,0.72559411,2928.3,2927.4,10.24797401]
[1764170159568,0.62278751,2928.3,2927.5,0.4894]
[1764170159866,0.72559411,2928.4,2927.5,0.4894]
[1764170160184,0.72559411,2928.3,2927.5,0.4894]
[1764170160349,0.221,2928.2,2927.5,0.4894]
[1764170160520,0.221,2928.2,2927.3,0.1882]
[1764170160727,0.72559411,2927.9,2927.1,0.6776]
[1764170160927,2.233802,2927.6,2927.1,0.1882]
[1764170161229,0.221,2927.5,2927.1,0.6776]
[1764170161434,0.221,2927.5,2927.1,4.09394056]
[1764170161731,0.6992,2927.5,2927.0,0.001]
[1764170161925,0.221,2927.5,2927.1,3.60455065]
[1764170162125,0.221,2927.5,2927.2,0.001]
[1764170162726,0.4752,2927.3,2927.2,0.001]
[1764170162926,0.96870165,2927.3,2927.2,0.001]
[1764170163148,1.06600165,2927.3,2927.2,0.001]
[1764170163457,0.221,2927.5,2927.2,0.001]
[1764170163632,0.4752,2927.3,2927.2,0.001]
[1764170163833,0.978004,2927.3,2927.2,0.001]
[1764170164048,23.98239411,2927.3,2927.2,0.001]
[1764170164234,23.98239411,2927.3,2927.0,0.001]
[1764170164235,1.13109811,2927.2,2927.0,0.001]
[1764170164557,40.53321637,2927.1,2927.0,0.001]
[1764170164759,1.13109811,2926.8,2926.5,0.001]
[1764170164933,31.15729144,2926.6,2926.5,0.001]
[1764170165262,30.0,2926.4,2925.1,3.41858297]
[1764170165426,0.0048,2925.6,2924.5,0.4696]
[1764170165755,0.405504,2926.0,2924.5,0.4696]
[1764170165969,0.72559411,2926.1,2924.5,0.4696]
[1764170165970,0.72559411,2925.7,2924.5,0.4696]
[1764170166126,0.80930147,2926.1,2924.5,0.4696]
[1764170166127,0.405504,2926.0,2924.5,0.4696]
[1764170166328,5.448207,2925.5,2924.5,0.4696]
[1764170166647,0.221,2925.4,2924.5,0.4696]
[1764170167155,0.405504,2925.3,2924.0,10.4481126]
[1764170167359,2.28663,2925.5,2925.2,0.6548]
[1764170167525,0.221,2925.4,2925.3,0.4735]
[1764170168134,0.221,2925.4,2925.2,0.1813]
[1764170168327,0.221,2925.4,2925.1,0.1813]
[1764170168528,0.72559411,2926.0,2925.3,0.4735]
[1764170168749,0.221,2925.9,2925.3,0.4735]
[1764170168963,0.221,2925.9,2925.4,0.4696]
[1764170169264,0.221,2926.0,2925.8,0.4735]
[1764170169463,0.221,2926.0,2925.9,4.3608518]
[1764170169826,0.4749,2927.0,2925.9,4.3608518]
[1764170169827,0.221,2927.0,2925.9,18.031859]
[1764170170053,0.221,2927.0,2926.0,0.4696]
[1764170170439,6.179711,2926.0,2924.9,0.34419254]
[1764170170639,0.72559411,2925.7,2924.8,0.1813]
[1764170170866,7.815986,2925.8,2924.8,0.1813]
[1764170170867,0.8851111,2925.9,2924.9,0.4696]
[1764170171038,0.221,2925.9,2924.9,0.4696]
[1764170171372,2.801177,2925.8,2925.0,3.41880341]
[1764170171528,2.801177,2925.8,2924.9,7.30743806]
[1764170171730,0.1888,2925.9,2924.9,10.72635836]
[1764170172060,0.221,2925.8,2925.0,0.4696]
[1764170172631,0.405504,2924.9,2923.7,0.1813]
[1764170172833,6.967657,2925.2,2923.7,7.02193705]
[1764170173068,0.72559411,2924.9,2923.8,0.4696]
[1764170173362,0.221,2924.8,2923.9,10.2602688]
[1764170173740,2.23909453,2926.7,2924.0,0.4696]
[1764170173741,0.91439411,2925.9,2924.0,0.4696]
[1764170173943,2.977658,2925.8,2924.1,0.50456306]
[1764170174144,0.221,2925.7,2924.3,0.405504]
[1764170174340,2.203496,2925.6,2924.2,0.55145906]
[1764170174535,2.203496,2925.6,2924.3,0.405504]
[1764170174536,0.2424496,2925.6,2924.3,0.405504]
[1764170174749,0.221,2925.5,2924.3,0.405504]
[1764170175065,0.221,2925.5,2924.4,0.55145906]
[1764170175437,0.221,2925.5,2925.4,3.60063595]
[1764170176136,17.971178,2926.5,2925.4,7.4713719]
[1764170176337,4.43074683,2926.6,2925.4,0.1823]
[1764170176338,16.768563,2926.3,2925.4,0.1823]
[1764170176647,0.72559411,2925.8,2925.4,7.01896006]
[1764170176870,2.961438,2926.3,2925.4,10.43729601]
[1764170177194,27.731288,2926.1,2925.4,3.60062411]
[1764170177468,0.94659411,2926.2,2925.4,7.01896006]
[1764170178069,0.72559411,2926.0,2925.4,7.01896006]
[1764170178447,0.221,2926.2,2925.4,7.01896006]
[1764170178648,8.648996,2925.9,2925.4,3.41832411]
[1764170178858,0.72559411,2926.0,2925.4,6.83666006]
[1764170179065,0.221,2926.2,2925.4,7.28906006]
[1764170179269,2.132393,2926.1,2925.4,7.28906006]